fUST/lending_fUST_20251212
["ID","MTS","AMOUNT","RATE_DAILY","PERIOD"]
[398357434,1765551611034,-1920.43,0.00041917,120]
[398357435,1765551611082,-1848.03,0.00041917,120]
[398357436,1765551611132,-500.0,0.00041917,120]
[398357437,1765551611186,-1315.71,0.00041917,120]
[398357438,1765551611238,-571.16,0.00041917,120]
[398357439,1765551611289,-760.32,0.00041917,120]
[398357440,1765551611347,-500.0,0.00041917,120]
[398357441,1765551611407,-5221.94,0.00041917,120]
[398357442,1765551611465,-500.0,0.00041917,120]
[398357443,1765551611518,-500.0,0.00041917,120]
[398357444,1765551611573,-500.0,0.00041917,120]
[398357445,1765551611632,-6806.92,0.00041917,120]
[398357446,1765551611687,-822.46,0.00041917,120]
[398357447,1765551611744,-500.0,0.00041917,120]
[398357448,1765551611799,-500.0,0.00041917,120]
[398357449,1765551611850,-500.0,0.00041917,120]
[398357450,1765551611900,-2232.790113,0.00041917,120]
[398357451,1765551611955,-1301.35,0.00041917,120]
[398357452,1765551612008,-393.9,0.00041917,120]
[398357453,1765551612060,-500.0,0.00041917,120]
[398357454,1765551612111,-2816.98,0.00041917,120]
[398357455,1765551612165,-500.0,0.00041917,120]
[398357456,1765551612218,-807.71,0.00041917,120]
[398357457,1765551612270,-497.49986047,0.00041917,120]
[398357458,1765551612323,-1165.13,0.00041917,30]
[398357459,1765551612380,-500.0,0.00041917,120]
[398357460,1765551612432,-559.07,0.00041917,120]
[398357461,1765551612480,-500.0,0.00041917,120]
[398357462,1765551612530,-500.66,0.00041917,120]
[398357463,1765551612580,-1357.98,0.00041917,120]
[398357464,1765551612630,-500.0,0.00041917,120]
[398357465,1765551612681,-293.2466045,0.00041917,120]
[398357466,1765551612729,-830.63,0.00041917,120]
[398357467,1765551612777,-500.0,0.00041917,120]
[398357468,1765551612825,-500.0,0.00041917,120]
[398357469,1765551612874,-500.0,0.00041917,120]
[398357470,1765551612926,-4984.88,0.00041917,120]
[398357471,1765551612974,-1656.13,0.00041917,120]
[398357472,1765551613066,-1033.11,0.00041917,120]
[398357473,1765551613114,-500.0,0.00041917,120]
[398357474,1765551613165,-500.0,0.00041917,120]
[398357475,1765551613215,-697.36,0.00041917,120]
[398357476,1765551613264,-677.54,0.00041917,120]
[398357477,1765551613316,-500.0,0.00041917,120]
[398357478,1765551613367,-3932.31,0.00041917,120]
[398357479,1765551613420,-991.44,0.00041917,120]
[398357480,1765551613472,-1507.22,0.00041917,120]
[398357481,1765551613525,-500.0,0.00041917,120]
[398357482,1765551613576,-500.0,0.00041917,120]
[398357483,1765551613628,-2032.65,0.00041917,120]
[398357484,1765551613678,-500.0,0.00041917,120]
[398357485,1765551613727,-3703.69,0.00041917,120]
[398357486,1765551613777,-1830.44,0.00041917,120]
[398357487,1765551613827,-500.0,0.00041917,120]
[398357488,1765551613878,-500.0,0.00041917,120]
[398357489,1765551613931,-986.77,0.00041917,120]
[398357490,1765551613982,-3704.65,0.00041917,120]
[398357491,1765551614032,-500.0,0.00041917,120]
[398357492,1765551614081,-500.0,0.00041917,120]
[398357493,1765551614135,-7458.75,0.00041917,120]
[398357494,1765551614195,-1053.64,0.00041917,120]
[398357495,1765551614252,-1240.96,0.00041917,120]
[398357496,1765551614303,-601.86,0.00041917,120]
[398357497,1765551614354,-857.66,0.00041917,120]
[398357498,1765551614407,-509.78,0.00041917,120]
[398357499,1765551614456,-528.05,0.00041917,120]
[398357500,1765551614506,-476.724665,0.00041917,120]
[398357501,1765551614556,-500.0,0.00041917,120]
[398357502,1765551614604,-1644.47,0.00041917,120]
[398357503,1765551614654,-4461.41,0.00041917,120]
[398357504,1765551614704,-500.0,0.00041917,120]
[398357505,1765551614753,-2000.0,0.00042,120]
[398357506,1765551614799,-577.85,0.00042191,120]
[398357507,1765551614847,-500.0,0.00042191,120]
[398357508,1765551614895,-500.0,0.00042191,120]
[398357509,1765551614944,-500.0,0.00042191,120]
[398357510,1765551614997,-500.0,0.00042191,120]
[398357511,1765551615045,-500.0,0.00042191,120]
[398357512,1765551615098,-500.0,0.00042191,120]
[398357513,1765551615147,-500.0,0.00042191,120]
[398357514,1765551615198,-500.0,0.00042191,120]
[398357515,1765551615248,-500.0,0.00042191,120]
[398357516,1765551615297,-500.0,0.00042191,120]
[398357517,1765551615349,-500.0,0.00042191,120]
[398357518,1765551615404,-500.0,0.00042191,120]
[398357519,1765551615461,-500.0,0.00042191,120]
[398357520,1765551615518,-1023.24,0.00042191,120]
[398357521,1765551615576,-500.0,0.00042191,120]
[398357522,1765551615633,-500.0,0.00042191,120]
[398357523,1765551615685,-576.20359173,0.00042191,120]
[398357524,1765551615736,-739.99,0.00042191,120]
[398357525,1765551615786,-653.44,0.00042191,120]
[398357526,1765551615836,-1602.86,0.00042191,120]
[398357527,1765551615887,-500.0,0.00042191,120]
[398357528,1765551615939,-500.0,0.00042191,120]
[398357529,1765551615993,-500.0,0.00042191,30]
[398357530,1765551616043,-500.0,0.00042191,120]
[398357531,1765551616094,-500.0,0.00042191,120]
[398357532,1765551616145,-1083.15,0.00042191,120]
[398357533,1765551616195,-915.35,0.00042191,120]
[398357534,1765551616252,-500.0,0.00042191,120]
[398357535,1765551616313,-500.0,0.00042191,120]
[398357536,1765551616369,-500.0,0.00042191,120]
[398357537,1765551616424,-500.0,0.00042191,120]
[398357538,1765551616477,-527.93,0.00042191,120]
[398357539,1765551616530,-500.0,0.00042191,120]
[398357540,1765551616585,-441.91,0.00042191,120]
[398357541,1765551616637,-661.64,0.00042191,120]
[398357542,1765551616689,-500.0,0.00042191,120]
[398357543,1765551616740,-1294.61,0.00042191,120]
[398357544,1765551616789,-919.59,0.00042191,120]
[398357545,1765551616838,-422.35861664,0.00042191,120]
[398357546,1765551616888,-500.0,0.00042191,120]
[398357547,1765551616937,-500.0,0.00042191,120]
[398357548,1765551616987,-1577.88,0.00042191,120]
[398357549,1765551617037,-524.74,0.00042191,120]
[398357550,1765551617085,-831.55,0.00042191,120]
[398357551,1765551617138,-1017.69,0.00042191,120]
[398357552,1765551617196,-548.68,0.00042191,120]
[398357553,1765551617250,-740.84,0.00042191,120]
[398357554,1765551617307,-2056.85456689,0.00042191,60]
[398357555,1765551617364,-500.0,0.00042191,120]
[398357556,1765551617415,-500.0,0.00042191,120]
[398357557,1765551617466,-500.0,0.00042191,120]
[398357558,1765551617520,-500.0,0.00042191,120]
[398357559,1765551617571,-551.69,0.00042191,120]
[398357560,1765551617621,-500.0,0.00042191,120]
[398357561,1765551617672,-500.0,0.00042191,120]
[398357562,1765551617721,-500.0,0.00042191,120]
[398357563,1765551617771,-1148.95,0.00042191,120]
[398357564,1765551617820,-500.0,0.00042191,120]
[398357565,1765551617871,-518.77,0.00042191,120]
[398357566,1765551617920,-500.0,0.00042191,120]
[398357567,1765551617972,-500.0,0.00042191,120]
[398357568,1765551618158,-500.0,0.00042191,120]
[398357569,1765551618210,-500.0,0.00042191,120]
[398357570,1765551618259,-500.0,0.00042191,120]
[398357571,1765551618308,-500.0,0.00042191,120]
[398357572,1765551618363,-507.13482675,0.00042191,120]
[398357573,1765551618418,-751.84,0.00042191,120]
[398357574,1765551618468,-500.0,0.00042191,120]
[398357575,1765551618517,-500.0,0.00042191,120]
[398357576,1765551618567,-500.0,0.00042191,120]
[398357577,1765551618618,-500.0,0.00042191,120]
[398357578,1765551618669,-500.0,0.00042191,120]
[398357579,1765551618718,-692.4,0.00042191,120]
[398357580,1765551618765,-500.0,0.00042191,120]
[398357581,1765551618815,-500.0,0.00042191,120]
[398357582,1765551618863,-500.0,0.00042191,120]
[398357583,1765551618915,-913.5,0.00042191,120]
[398357584,1765551618970,-502.20044195,0.00042191,120]
[398357585,1765551619021,-500.0,0.00042191,120]
[398357586,1765551619073,-1021.23,0.00042191,120]
[398357587,1765551619127,-500.0,0.00042191,120]
[398357588,1765551619193,-500.0,0.00042191,120]
[398357589,1765551619250,-500.0,0.00042191,120]
[398357590,1765551619307,-695.87,0.00042191,120]
[398357591,1765551619371,-1804.72,0.00042191,120]
[398357592,1765551619432,-500.0,0.00042191,120]
[398357593,1765551619485,-942.83,0.00042191,120]
[398357594,1765551619538,-500.0,0.00042191,120]
[398357595,1765551619588,-396.49137339,0.00042191,120]
[398357596,1765551619640,-713.52,0.00042191,120]
[398357597,1765551619691,-517.36,0.00042191,120]
[398357598,1765551619742,-500.73668402,0.00042191,120]
[398357599,1765551619791,-500.0,0.00042191,120]
[398357600,1765551619845,-1064.91,0.00042191,120]
[398357601,1765551619895,-879.86,0.00042191,40]
[398357602,1765551619946,-500.0,0.00042191,120]
[398357603,1765551619999,-500.0,0.00042191,120]
[398357604,1765551620051,-500.0,0.00042191,120]
[398357605,1765551620102,-500.0,0.00042191,120]
[398357606,1765551620152,-888.56,0.00042191,120]
[398357607,1765551620204,-500.0,0.00042191,120]
[398357608,1765551620254,-500.0,0.00042191,120]
[398357609,1765551620305,-500.0,0.00042191,120]
[398357610,1765551620355,-1772.02,0.00042191,120]
[398357611,1765551620412,-500.0,0.00042191,120]
[398357612,1765551620471,-199.0,0.00042191,41]
[398357613,1765551620529,-1170.54,0.00042191,120]
[398357614,1765551620580,-1155.19,0.00042191,120]
[398357615,1765551620630,-527.78,0.00042191,120]
[398357616,1765551620680,-500.0,0.00042191,120]
[398357617,1765551620729,-835.63,0.00042191,120]
[398357618,1765551620780,-504.46,0.00042191,120]
[398357619,1765551620831,-500.0,0.00042191,120]
[398357620,1765551620885,-500.0,0.00042191,120]
[398357621,1765551620940,-500.0,0.00042191,120]
[398357622,1765551620992,-500.0,0.00042191,120]
[398357623,1765551621043,-500.0,0.00042191,60]
[398357624,1765551621094,-500.0,0.00042191,120]
[398357625,1765551621144,-500.0,0.00042191,120]
[398357626,1765551621215,-947.43,0.00042191,120]
[398357627,1765551621272,-2498.81,0.00042191,120]
[398357628,1765551621326,-1513.84,0.00042191,120]
[398357629,1765551621383,-500.0,0.00042191,120]
[398357630,1765551621440,-1972.67,0.00042191,120]
[398357631,1765551621494,-500.0,0.00042191,120]
[398357632,1765551621551,-500.0,0.00042191,120]
[398357633,1765551621606,-500.0,0.00042191,120]
[398357634,1765551621663,-500.0,0.00042191,120]
[398357635,1765551621719,-555.39,0.00042191,120]
[398357636,1765551621772,-650.15,0.00042191,120]
[398357637,1765551621826,-500.0,0.00042191,120]
[398357638,1765551621879,-500.0,0.00042191,120]
[398357639,1765551621934,-546.48,0.00042191,120]
[398357640,1765551621987,-312.56909855,0.00042191,120]
[398357641,1765551622039,-500.0,0.00042191,120]
[398357642,1765551622093,-500.0,0.00042191,120]
[398357643,1765551622147,-500.0,0.00042191,120]
[398357644,1765551622200,-500.0,0.00042191,120]
[398357645,1765551622254,-500.0,0.00042191,120]
[398357646,1765551622308,-500.0,0.00042191,90]
[398357647,1765551622365,-955.21,0.00042191,120]
[398357648,1765551622420,-500.0,0.00042191,120]
[398357649,1765551622474,-500.0,0.00042191,120]
[398357650,1765551622526,-608.9,0.00042191,120]
[398357651,1765551622578,-583.48,0.00042191,120]
[398357652,1765551622874,-500.0,0.00042191,120]
[398357653,1765551622931,-500.0,0.00042191,120]
[398357654,1765551622988,-500.0,0.00042191,120]
[398357655,1765551623045,-646.24,0.00042191,120]
[398357656,1765551623102,-550.65,0.00042191,120]
[398357657,1765551623157,-1006.28,0.00042191,120]
[398357658,1765551623212,-817.12,0.00042191,120]
[398357659,1765551623268,-686.53,0.00042191,120]
[398357660,1765551623325,-500.0,0.00042191,120]
[398357661,1765551623379,-561.43,0.00042191,120]
[398357662,1765551623438,-500.0,0.00042191,120]
[398357663,1765551623495,-1349.21,0.00042191,120]
[398357664,1765551623553,-1514.23,0.00042191,120]
[398357665,1765551623607,-500.0,0.00042191,120]
[398357666,1765551623663,-608.7,0.00042191,120]
[398357667,1765551623716,-518.44,0.00042191,120]
[398357668,1765551623770,-994.05,0.00042191,120]
[398357669,1765551623826,-2454.51,0.00042191,120]
[398357670,1765551623878,-500.0,0.00042191,120]
[398357671,1765551623932,-500.0,0.00042191,120]
[398357672,1765551623987,-500.0,0.00042191,120]
[398357673,1765551624045,-570.77,0.00042191,120]
[398357674,1765551624101,-500.0,0.00042191,120]
[398357675,1765551624156,-1335.36,0.00042191,120]
[398357676,1765551624211,-539.52,0.00042191,120]
[398357677,1765551624264,-500.0,0.00042191,120]
[398357678,1765551624317,-553.11887287,0.00042191,120]
[398357679,1765551624372,-500.0,0.00042191,120]
[398357680,1765551624427,-500.0,0.00042191,120]
[398357681,1765551624482,-854.37,0.00042191,120]
[398357682,1765551624535,-500.0,0.00042191,120]
[398357683,1765551624590,-500.0,0.00042191,120]
[398357684,1765551624649,-500.0,0.00042191,120]
[398357685,1765551624705,-2412.18,0.00042191,120]
[398357686,1765551624760,-500.0,0.00042191,120]
[398357687,1765551624814,-500.0,0.00042191,120]
[398357688,1765551624865,-500.0,0.00042191,120]
[398357689,1765551624917,-284.49875726,0.00042191,120]
[398357690,1765551624974,-500.0,0.00042191,120]
[398357691,1765551625026,-544.48592193,0.00042191,120]
[398357692,1765551625079,-970.8,0.00042191,120]
[398357693,1765551625132,-500.0,0.00042191,120]
[398357694,1765551625187,-500.0,0.00042191,120]
[398357695,1765551625242,-2056.95,0.00042191,120]
[398357696,1765551625296,-1338.78,0.00042191,30]
[398357697,1765551625350,-500.0,0.00042191,120]
[398357698,1765551625405,-4365.33,0.00042191,120]
[398357699,1765551625458,-593.25,0.00042191,120]
[398357700,1765551625512,-624.89,0.00042191,120]
[398357701,1765551625564,-588.3057066,0.00042191,120]
[398357702,1765551625616,-500.0,0.00042191,120]
[398357703,1765551625668,-500.0,0.00042191,120]
[398357704,1765551625720,-500.0,0.00042191,120]
[398357705,1765551625771,-674.18,0.00042191,120]
[398357706,1765551625823,-357.99538964,0.00042191,120]
[398357707,1765551625875,-1621.4,0.00042191,120]
[398357708,1765551625927,-9298.49,0.00042191,120]
[398357709,1765551625980,-2019.34,0.00042191,120]
[398357710,1765551626032,-500.0,0.00042191,120]
[398357711,1765551626084,-500.0,0.00042191,120]
[398357712,1765551626135,-574.39,0.00042191,120]
[398357713,1765551626188,-2090.21,0.00042191,120]
[398357714,1765551626240,-500.0,0.00042191,120]
[398357715,1765551626294,-500.0,0.00042191,60]
[398357716,1765551626346,-500.0,0.00042191,120]
[398357717,1765551626401,-11563.12,0.00042191,120]
[398357718,1765551626499,-500.0,0.00042191,120]
[398357719,1765551626554,-1587.78,0.00042191,120]
[398357720,1765551626607,-500.0,0.00042191,120]
[398357721,1765551626659,-2435.58,0.00042191,120]
[398357722,1765551626714,-500.0,0.00042191,120]
[398357723,1765551626768,-500.0,0.00042191,120]
[398357724,1765551626824,-707.91,0.00042191,120]
[398357725,1765551626878,-690.72,0.00042191,120]
[398357726,1765551626934,-4131.11,0.00042191,120]
[398357727,1765551626989,-745.28,0.00042191,120]
[398357728,1765551627042,-984.45,0.00042191,120]
[398357729,1765551627096,-839.26,0.00042191,120]
[398357730,1765551627154,-730.44,0.00042191,120]
[398357731,1765551627212,-1652.54,0.00042191,120]
[398357732,1765551627267,-643.22802866,0.00042191,120]
[398357733,1765551627324,-589.88010356,0.00042191,120]
[398357734,1765551627388,-500.0,0.00042191,120]
[398357735,1765551627444,-1679.33,0.00042191,120]
[398357736,1765551627500,-500.0,0.00042191,120]
[398357737,1765551627553,-500.0,0.00042191,120]
[398357738,1765551627606,-1996.1,0.00042191,120]
[398357739,1765551627658,-2110.54,0.00042191,120]
[398357740,1765551627711,-500.0,0.00042191,120]
[398357741,1765551627764,-500.0,0.00042191,120]
[398357742,1765551627817,-500.0,0.00042191,120]
[398357743,1765551627869,-9001.55,0.00042191,120]
[398357744,1765551627920,-1010.87,0.00042191,120]
[398357745,1765551627983,-2303.62,0.00042191,120]
[398357746,1765551628034,-2906.18,0.00042191,120]
[398357747,1765551628085,-500.0,0.00042191,120]
[398357748,1765551628137,-1592.05,0.00042191,120]
[398357749,1765551628190,-999.97,0.00042191,120]
[398357750,1765551628244,-22718.21,0.00042191,120]
[398357751,1765551628296,-1833.54,0.00042191,120]
[398357752,1765551628348,-500.0,0.00042191,120]
[398357753,1765551628403,-27650.2,0.00042191,120]
[398357754,1765551628461,-594.7,0.00042191,120]
[398357755,1765551628522,-500.0,0.00042191,120]
[398357756,1765551628576,-500.0,0.00042191,120]
[398357757,1765551628628,-2595.28,0.00042191,120]
[398357758,1765551628677,-633.92,0.00042191,120]
[398357759,1765551628731,-604.71,0.00042191,120]
[398357760,1765551628781,-996.1,0.00042191,120]
[398357761,1765551628847,-719.66,0.00042191,120]
[398357762,1765551628912,-768.67,0.00042191,30]
[398357763,1765551628972,-537.19,0.00042191,120]
[398357764,1765551629037,-2790.78,0.00042191,120]
[398357765,1765551629102,-5160.6,0.00042191,120]
[398357766,1765551629159,-500.0,0.00042191,120]
[398357767,1765551629214,-654.67,0.00042191,120]
[398357768,1765551629268,-536.21,0.00042191,120]
[398357769,1765551629322,-1472.63,0.00042191,120]
[398357770,1765551629377,-753.89,0.00042191,120]
[398357771,1765551629443,-1063.01,0.00042191,120]
[398357772,1765551629499,-992.13,0.00042191,120]
[398357773,1765551629562,-1270.95,0.00042191,120]
[398357774,1765551629614,-885.72,0.00042191,120]
[398357775,1765551629665,-500.0,0.00042191,120]
[398357776,1765551629717,-1062.43,0.00042191,120]
[398357777,1765551629769,-1650.53,0.00042191,120]
[398357778,1765551629820,-500.0,0.00042191,120]
[398357779,1765551629872,-500.0,0.00042191,120]
[398357780,1765551629927,-3845.54,0.00042191,120]
[398357781,1765551629979,-541.01,0.00042191,120]
[398357782,1765551630033,-1922.65,0.00042191,120]
[398357783,1765551630084,-2038.3,0.00042191,120]
[398357784,1765551630136,-500.0,0.00042191,120]
[398357785,1765551630190,-2413.47,0.00042191,120]
[398357786,1765551630242,-766.61,0.00042191,120]
[398357787,1765551630293,-2900.12,0.00042191,120]
[398357788,1765551630345,-1672.8,0.00042191,120]
[398357789,1765551630402,-784.74,0.00042191,120]
[398357790,1765551630455,-500.0,0.00042191,120]
[398357791,1765551630508,-500.0,0.00042191,120]
[398357792,1765551630558,-4558.32,0.00042191,120]
[398357793,1765551630611,-1098.06,0.00042191,120]
[398357794,1765551630661,-658.88,0.00042191,120]
[398357795,1765551630712,-6758.05,0.00042191,120]
[398357796,1765551630763,-500.0,0.00042191,120]
[398357797,1765551630814,-1461.11,0.00042191,120]
[398357798,1765551630865,-500.0,0.00042191,120]
[398357799,1765551630914,-1192.44,0.00042191,120]
[398357800,1765551630967,-500.62527099,0.00042191,120]
[398357801,1765551631021,-4560.77,0.00042191,120]
[398357802,1765551631071,-500.0,0.00042191,120]
[398357803,1765551631121,-500.0,0.00042191,120]
[398357804,1765551631174,-7371.62,0.00042191,120]
[398357805,1765551631225,-589.56615225,0.00042191,120]
[398357806,1765551631277,-660.64,0.00042191,120]
[398357807,1765551631331,-1412.34,0.00042191,120]
[398357808,1765551631383,-617.1,0.00042191,120]
[398357809,1765551631440,-500.0,0.00042191,120]
[398357810,1765551631493,-500.0,0.00042191,120]
[398357811,1765551631544,-500.0,0.00042191,120]
[398357812,1765551631597,-2376.95,0.00042191,120]
[398357813,1765551631826,-411.8932819,0.00042191,120]
[398357814,1765551631879,-532.46,0.00042191,120]
[398357815,1765551631935,-771.36,0.00042191,120]
[398357816,1765551631989,-500.0,0.00042191,120]
[398357817,1765551632045,-500.0,0.00042191,120]
[398357818,1765551632099,-2107.15,0.00042191,30]
[398357819,1765551632156,-804.28,0.00042191,120]
[398357820,1765551632221,-791.49,0.00042191,120]
[398357821,1765551632276,-1920.43,0.00042191,120]
[398357822,1765551632331,-1848.03,0.00042191,120]
[398357823,1765551632385,-500.0,0.00042191,120]
[398357824,1765551632440,-1315.71,0.00042191,120]
[398357825,1765551632495,-571.16,0.00042191,120]
[398357826,1765551632548,-1559.94,0.00042191,120]
[398357827,1765551632600,-760.32,0.00042191,120]
[398357828,1765551632652,-501.6891103,0.00042191,120]
[398357829,1765551632711,-5221.94,0.00042191,120]
[398357830,1765551632761,-500.0,0.00042191,120]
[398357831,1765551632813,-500.0,0.00042191,120]
[398357832,1765551632866,-500.0,0.00042191,120]
[398357833,1765551632918,-6806.92,0.00042191,120]
[398357834,1765551632973,-822.46,0.00042191,120]
[398357835,1765551633031,-500.75098663,0.00042191,120]
[398357836,1765551633086,-500.0,0.00042191,120]
[398357837,1765551633140,-500.0,0.00042191,120]
[398357838,1765551633197,-1301.35,0.00042191,120]
[398357839,1765551633250,-2232.790113,0.00042191,120]
[398357840,1765551633303,-500.0,0.00042191,120]
[398357841,1765551633356,-2816.98,0.00042191,120]
[398357842,1765551633409,-500.0,0.00042191,120]
[398357843,1765551633462,-807.71,0.00042191,120]
[398357844,1765551633513,-1165.13,0.00042191,30]
[398357845,1765551633564,-500.0,0.00042191,120]
[398357846,1765551633616,-559.07,0.00042191,120]
[398357847,1765551633673,-500.0,0.00042191,120]
[398357848,1765551633724,-500.66,0.00042191,120]
[398357849,1765551633772,-500.0,0.00042191,120]
[398357850,1765551633822,-830.63,0.00042191,120]
[398357851,1765551633871,-500.0,0.00042191,120]
[398357852,1765551633921,-500.0,0.00042191,120]
[398357853,1765551633978,-500.0,0.00042191,120]
[398357854,1765551634032,-1357.98,0.00042191,120]
[398357855,1765551634085,-4984.88,0.00042191,120]
[398357856,1765551634137,-1656.13,0.00042191,120]
[398357857,1765551634192,-1033.11,0.00042191,120]
[398357858,1765551634245,-500.0,0.00042191,120]
[398357859,1765551634297,-273.43575185,0.00042191,120]
[398357860,1765551634351,-697.36,0.00042191,120]
[398357861,1765551634406,-677.54,0.00042191,120]
[398357862,1765551634459,-500.0,0.00042191,120]
[398357863,1765551634509,-3932.31,0.00042191,120]
[398357864,1765551634560,-991.44,0.00042191,120]
[398357865,1765551634611,-1507.22,0.00042191,120]
[398357866,1765551634663,-500.0,0.00042191,120]
[398357867,1765551634719,-500.0,0.00042191,120]
[398357868,1765551634769,-2032.65,0.00042191,120]
[398357869,1765551634819,-500.0,0.00042191,120]
[398357870,1765551634871,-3703.69,0.00042191,120]
[398357871,1765551634933,-1830.44,0.00042191,120]
[398357872,1765551634984,-500.0,0.00042191,120]
[398357873,1765551635033,-500.0,0.00042191,120]
[398357874,1765551635083,-986.77,0.00042191,120]
[398357875,1765551635133,-3704.65,0.00042191,120]
[398357876,1765551635186,-500.0,0.00042191,120]
[398357877,1765551635238,-500.0,0.00042191,120]
[398357878,1765551635291,-7458.75,0.00042191,120]
[398357879,1765551635341,-1053.64,0.00042191,120]
[398357880,1765551635391,-1240.96,0.00042191,120]
[398357881,1765551635445,-601.86,0.00042191,120]
[398357882,1765551635495,-857.66,0.00042191,120]
[398357883,1765551635545,-509.78,0.00042191,120]
[398357884,1765551635597,-528.05,0.00042191,120]
[398357885,1765551635648,-476.724665,0.00042191,120]
[398357886,1765551635699,-500.0,0.00042191,120]
[398357887,1765551635750,-1644.47,0.00042191,120]
[398357888,1765551635808,-4461.41,0.00042191,120]
[398357889,1765551635868,-500.0,0.00042191,120]
[398357890,1765551635921,-500.0,0.00042465,120]
[398357891,1765551635977,-577.85,0.00042465,120]
[398357892,1765551636031,-500.0,0.00042465,120]
[398357893,1765551636085,-500.0,0.00042465,120]
[398357894,1765551636140,-500.0,0.00042465,120]
[398357895,1765551636198,-500.0,0.00042465,120]
[398357896,1765551636251,-500.0,0.00042465,120]
[398357897,1765551636563,-500.0,0.00042465,120]
[398357898,1765551636619,-500.0,0.00042465,120]
[398357899,1765551636673,-500.0,0.00042465,120]
[398357900,1765551636728,-500.0,0.00042465,120]
[398357901,1765551636780,-501.93405635,0.00042465,120]
[398357902,1765551636831,-500.0,0.00042465,120]
[398357903,1765551636885,-500.0,0.00042465,120]
[398357904,1765551636938,-500.0,0.00042465,120]
[398357905,1765551636990,-1023.24,0.00042465,120]
[398357906,1765551637041,-500.0,0.00042465,120]
[398357907,1765551637094,-500.0,0.00042465,120]
[398357908,1765551637149,-739.99,0.00042465,120]
[398357909,1765551637200,-653.44,0.00042465,120]
[398357910,1765551637250,-1602.86,0.00042465,120]
[398357911,1765551637301,-500.0,0.00042465,120]
[398357912,1765551637369,-500.0,0.00042465,120]
[398357913,1765551637427,-500.0,0.00042465,30]
[398357914,1765551637481,-500.0,0.00042465,120]
[398357915,1765551637535,-500.0,0.00042465,120]
[398357916,1765551637590,-1083.15,0.00042465,120]
[398357917,1765551637645,-915.35,0.00042465,120]
[398357918,1765551637696,-500.0,0.00042465,120]
[398357919,1765551637749,-500.0,0.00042465,120]
[398357920,1765551637807,-401.49052953,0.00042465,120]
[398357921,1765551637860,-500.0,0.00042465,120]
[398357922,1765551637914,-527.93,0.00042465,120]
[398357923,1765551637969,-500.0,0.00042465,120]
[398357924,1765551638022,-661.64,0.00042465,120]
[398357925,1765551638077,-500.0,0.00042465,120]
[398357926,1765551638133,-1294.61,0.00042465,120]
[398357927,1765551638188,-919.59,0.00042465,120]
[398357928,1765551638245,-500.0,0.00042465,120]
[398357929,1765551638300,-468.06909661,0.00042465,120]
[398357930,1765551638354,-1577.88,0.00042465,120]
[398357931,1765551638409,-524.74,0.00042465,120]
[398357932,1765551638462,-831.55,0.00042465,120]
[398357933,1765551638516,-1017.69,0.00042465,120]